bitfinex/quotes_SOLUSD_20241220
["timestamp","ask_amount","ask_price","bid_price","bid_amount"]
[1734657184112,0.37842933,194.59,194.53,22.87084996]
[1734657184288,0.37842933,194.59,194.52,22.87084996]
[1734657184289,23.24927929,194.59,194.52,22.87084996]
[1734657184491,23.24927929,194.59,194.51,22.87084996]
[1734657184696,22.87084996,194.56,194.48,22.87084996]
[1734657184936,6.5934,194.57,194.51,22.87084996]
[1734657185116,22.87084996,194.56,194.49,22.87084996]
[1734657185321,0.37842933,194.55,194.49,22.87084996]
[1734657185507,23.24927929,194.55,194.43,7.09027181]
[1734657185711,23.24927929,194.55,194.44,22.87084996]
[1734657185712,22.87084996,194.51,194.44,22.87084996]
[1734657186011,0.37842933,194.54,194.45,3.01667289]
[1734657186206,0.37842933,194.56,194.5,22.87084996]
[1734657186514,6.97182933,194.57,194.51,22.87084996]
[1734657186819,22.87084996,194.56,194.51,4.90005306]
[1734657187007,22.87084996,194.54,194.51,4.90005306]
[1734657187216,0.37842933,194.53,194.52,1.88338017]
[1734657187795,23.24927929,194.53,194.52,1.88338017]
[1734657188315,0.37842933,194.53,194.52,1.88338017]
[1734657189221,23.24927929,194.53,194.52,1.88338017]
[1734657189738,47.02616329,194.53,194.52,1.88338017]
[1734657190354,0.37842933,194.53,194.52,1.88338017]
[1734657190517,29.46424996,194.57,194.52,1.88338017]
[1734657190840,29.46424996,194.57,194.53,1.88338017]
[1734657190841,20.0,194.54,194.53,1.88338017]
[1734657191436,42.87084996,194.54,194.53,1.88338017]
[1734657191627,66.64773396,194.54,194.53,1.88338017]
[1734657192330,42.87084996,194.54,194.53,1.88338017]
[1734657193045,22.87084996,194.54,194.53,1.88338017]
[1734657193251,0.37842933,194.56,194.53,1.88338017]
[1734657193737,23.24927929,194.56,194.54,1.88338017]
[1734657193941,22.87084996,194.55,194.54,1.88338017]
[1734657194140,22.87084996,194.55,194.5,3.01667289]
[1734657194357,0.37842933,194.54,194.5,3.01667289]
[1734657194524,22.87084996,194.53,194.5,3.01667289]
[1734657194855,0.37842933,194.54,194.51,1.86942134]
[1734657194856,0.37842933,194.52,194.51,1.86942134]
[1734657195021,48.56106329,194.52,194.51,1.86942134]
[1734657197752,50.64737606,194.52,194.51,1.86942134]
[1734657198249,48.56106329,194.52,194.51,1.86942134]
[1734657198560,23.24927929,194.52,194.51,1.86942134]
[1734657198754,22.87084996,194.55,194.51,1.86942134]
[1734657199051,0.37842933,194.54,194.51,1.86942134]
[1734657199251,0.37842933,194.54,194.52,1.86942134]
[1734657199548,22.87084996,194.53,194.43,22.87084996]
[1734657199752,22.87084996,194.49,194.42,22.87084996]
[1734657199995,0.37842933,194.52,194.38,22.87084996]
[1734657199996,22.87084996,194.45,194.38,22.87084996]
[1734657200124,0.37842933,194.44,194.38,22.87084996]
[1734657200320,23.24927929,194.44,194.37,24.42384996]
[1734657200626,22.87084996,194.43,194.36,22.87084996]
[1734657200832,13.99118455,194.43,194.38,2.99315822]
[1734657201038,22.87084996,194.42,194.38,4.86368711]
[1734657201225,22.87084996,194.41,194.38,4.86368711]
[1734657201546,7.6976,194.47,194.39,4.86368711]
[1734657201749,46.64773396,194.4,194.39,4.86368711]
[1734657202155,46.64773396,194.4,194.23,6.27]
[1734657202156,20.0,194.35,194.23,6.27]
[1734657202322,23.776884,194.34,194.22,1.6198]
[1734657203242,23.776884,194.34,194.18,6.27]
[1734657203448,22.87084996,194.28,194.21,22.87084996]
[1734657203619,22.87084996,194.27,194.2,22.87084996]
[1734657204266,22.87084996,194.25,194.18,22.87084996]
[1734657204570,22.87084996,194.24,194.17,22.87084996]
[1734657204734,22.87084996,194.18,194.12,22.87084996]
[1734657205064,22.87084996,194.18,194.11,22.87084996]
[1734657205456,22.87084996,194.18,194.12,22.87084996]
[1734657205853,22.87084996,194.21,194.14,22.87084996]
[1734657206159,22.87084996,194.2,194.13,22.87084996]
[1734657206667,22.87084996,194.21,194.13,22.87084996]
[1734657206969,22.87084996,194.2,194.13,22.87084996]
[1734657207765,22.87084996,194.19,194.12,22.87084996]
[1734657208665,22.87084996,194.2,194.13,22.87084996]
[1734657208851,22.87084996,194.21,194.14,22.87084996]
[1734657209752,22.87084996,194.2,194.13,22.87084996]
[1734657210259,22.87084996,194.19,194.12,22.87084996]
[1734657210450,22.87084996,194.2,194.13,22.87084996]
[1734657210651,22.87084996,194.21,194.14,22.87084996]
[1734657210850,22.87084996,194.2,194.13,22.87084996]
[1734657211052,22.87084996,194.22,194.15,22.87084996]
[1734657211255,22.87084996,194.25,194.18,22.87084996]
[1734657211970,29.47834996,194.28,194.21,22.87084996]
[1734657212142,6.6075,194.28,194.21,22.87084996]
[1734657212343,22.87084996,194.27,194.2,22.87084996]
[1734657212551,29.47834996,194.28,194.21,22.87084996]
[1734657212750,22.87084996,194.29,194.22,22.87084996]
[1734657213748,22.87084996,194.27,194.2,22.87084996]
[1734657214063,22.87084996,194.28,194.21,22.87084996]
[1734657214270,22.87084996,194.27,194.2,22.87084996]
[1734657214839,22.87084996,194.25,194.18,22.87084996]
[1734657215156,22.87084996,194.22,194.15,22.87084996]
[1734657215358,22.87084996,194.23,194.15,22.87084996]
[1734657215561,4.29962369,194.21,194.14,35.74754996]
[1734657215867,22.87084996,194.22,194.15,22.87084996]
[1734657216053,22.87084996,194.23,194.16,22.87084996]
[1734657216658,22.87084996,194.28,194.21,22.87084996]
[1734657216852,22.87084996,194.29,194.22,22.87084996]
[1734657217762,22.87084996,194.28,194.21,22.87084996]
[1734657218349,22.87084996,194.26,194.19,22.87084996]
[1734657218550,22.87084996,194.28,194.21,22.87084996]
[1734657218741,22.87084996,194.27,194.2,22.87084996]
[1734657218972,22.87084996,194.28,194.21,22.87084996]
[1734657219153,22.87084996,194.29,194.22,22.87084996]
[1734657220743,22.87084996,194.28,194.21,22.87084996]
[1734657220949,22.87084996,194.25,194.18,22.87084996]
[1734657221149,22.87084996,194.21,194.14,22.87084996]
[1734657221447,22.87084996,194.19,194.12,22.87084996]
[1734657221654,22.87084996,194.17,194.1,12.8798]
[1734657222067,22.87084996,194.17,194.1,35.75064996]
[1734657222491,22.87084996,194.18,194.11,22.87084996]
[1734657223408,6.1861,194.23,194.17,22.87084996]
[1734657223676,3.63927095,194.26,194.19,22.87084996]
[1734657223677,22.87084996,194.26,194.19,22.87084996]
[1734657224250,22.87084996,194.24,194.17,22.87084996]
[1734657224452,22.87084996,194.25,194.18,22.87084996]
[1734657224675,22.87084996,194.25,194.13,20.77245231]
[1734657224676,22.87084996,194.24,194.17,22.87084996]
[1734657227679,22.87084996,194.26,194.19,22.87084996]
[1734657228079,22.87084996,194.26,194.18,12.8746]
[1734657228080,6.2543,194.27,194.21,22.87084996]
[1734657228373,6.2543,194.27,194.18,0.77228782]
[1734657228374,28.95034996,194.32,194.25,22.87084996]
[1734657228559,43.47011496,194.35,194.28,22.87084996]
[1734657228760,30.55594996,194.37,194.3,22.87084996]
[1734657228976,6.0795,194.42,194.22,20.0]
[1734657229165,6.0795,194.42,194.36,22.87084996]
[1734657229361,6.4756,194.47,194.39,22.87084996]
[1734657229573,1.5838,194.5,194.3,1.5827]
[1734657229574,1.5838,194.5,194.42,22.87084996]
[1734657229774,22.87084996,194.49,194.42,22.87084996]
[1734657229962,1.5838,194.5,194.43,22.87084996]
[1734657229963,22.87084996,194.5,194.43,22.87084996]
[1734657230682,22.87084996,194.54,194.47,22.87084996]
[1734657230859,22.87084996,194.55,194.48,22.87084996]
[1734657231061,22.87084996,194.52,194.45,22.87084996]
[1734657231274,1.5838,194.57,194.4,13.63139716]
[1734657231275,1.5838,194.57,194.43,22.87084996]
[1734657231493,1.5838,194.57,194.4,12.86]
[1734657231660,20.578188,194.56,194.4,12.86]
[1734657231863,22.87084996,194.5,194.42,22.87084996]
[1734657232168,22.87084996,194.5,194.43,22.87084996]
[1734657232373,22.87084996,194.5,194.42,22.87084996]
[1734657232577,22.87084996,194.52,194.44,22.87084996]
[1734657232765,22.87084996,194.53,194.46,22.87084996]
[1734657232954,22.87084996,194.55,194.47,22.87084996]
[1734657233159,22.87084996,194.55,194.48,22.87084996]
[1734657233361,22.87084996,194.54,194.46,22.87084996]
[1734657233556,22.87084996,194.48,194.41,22.87084996]
[1734657233871,22.87084996,194.49,194.42,22.87084996]
[1734657234070,22.87084996,194.48,194.41,22.87084996]
[1734657234883,22.87084996,194.47,194.39,22.87084996]
[1734657235073,22.87084996,194.46,194.38,22.87084996]
[1734657235273,22.87084996,194.45,194.38,22.87084996]
[1734657235462,22.87084996,194.44,194.36,22.87084996]
[1734657235787,22.87084996,194.43,194.36,22.87084996]
[1734657236288,22.87084996,194.45,194.37,22.87084996]
[1734657236490,22.87084996,194.44,194.37,22.87084996]
[1734657236975,22.87084996,194.43,194.35,22.87084996]
[1734657237177,22.87084996,194.45,194.37,22.87084996]
[1734657237378,22.87084996,194.42,194.35,22.87084996]
[1734657237584,22.87084996,194.42,194.34,22.87084996]
[1734657237981,6.2894,194.47,194.36,22.87084996]
[1734657238168,22.87084996,194.44,194.36,22.87084996]
[1734657238576,22.87084996,194.43,194.36,22.87084996]
[1734657238775,22.87084996,194.43,194.35,22.87084996]
[1734657238993,22.87084996,194.43,194.36,22.87084996]
[1734657239187,22.87084996,194.43,194.35,22.87084996]
[1734657239701,22.87084996,194.41,194.34,22.87084996]
[1734657239990,1.5136,194.45,194.29,35.73784996]
[1734657240174,22.87084996,194.38,194.31,22.87084996]
[1734657240383,1.5136,194.45,194.35,22.87084996]
[1734657240569,6.2894,194.47,194.32,12.8653]
[1734657240770,23.776884,194.42,194.24,27.2964]
[1734657240968,23.776884,194.42,194.24,28.06825968]
[1734657241177,23.776884,194.42,194.27,20.0]
[1734657241783,22.87084996,194.32,194.19,0.77182113]
[1734657242073,22.87084996,194.32,194.24,22.87084996]
[1734657242393,6.4072,194.36,194.28,22.87084996]
[1734657242576,6.4072,194.36,194.29,22.87084996]
[1734657242980,29.27804996,194.36,194.29,22.87084996]
[1734657243196,22.87084996,194.35,194.27,22.87084996]
[1734657243396,22.87084996,194.34,194.26,22.87084996]
[1734657243699,22.87084996,194.35,194.28,22.87084996]
[1734657244592,22.87084996,194.35,194.25,12.8695]
[1734657244593,22.87084996,194.34,194.27,22.87084996]
[1734657245183,22.87084996,194.34,194.26,22.87084996]
[1734657245681,6.4072,194.36,194.29,22.87084996]
[1734657245885,22.87084996,194.38,194.3,22.87084996]
[1734657246693,22.87084996,194.4,194.32,22.87084996]
[1734657246901,22.87084996,194.4,194.33,22.87084996]
[1734657247100,29.47894996,194.41,194.34,22.87084996]
[1734657247780,22.87084996,194.4,194.33,22.87084996]
[1734657248185,1.6362,194.44,194.37,22.87084996]
[1734657248186,22.87084996,194.44,194.37,22.87084996]
[1734657248822,22.87084996,194.43,194.36,22.87084996]
[1734657249120,22.87084996,194.44,194.37,22.87084996]
[1734657249317,22.87084996,194.41,194.34,22.87084996]
[1734657249806,22.87084996,194.41,194.33,22.87084996]
[1734657250016,22.87084996,194.41,194.34,22.87084996]
[1734657250381,22.87084996,194.39,194.32,22.87084996]
[1734657251185,22.87084996,194.45,194.38,22.87084996]
[1734657251929,29.03594996,194.47,194.4,22.87084996]
[1734657252082,22.87084996,194.5,194.43,22.87084996]
[1734657252484,22.87084996,194.47,194.4,22.87084996]
[1734657252684,6.3682,194.53,194.32,12.8647]
[1734657252922,11.5669,194.52,194.31,1.6104]
[1734657253119,11.5669,194.52,194.27,7.22931443]
[1734657253120,8.1193,194.51,194.27,6.458]
[1734657253283,18.038,194.5,194.29,12.8672]
[1734657253709,23.776884,194.46,194.29,12.8672]
[1734657253912,22.87084996,194.38,194.31,22.87084996]
[1734657254131,22.87084996,194.37,194.3,22.87084996]
[1734657254290,22.87084996,194.35,194.28,22.87084996]
[1734657254617,22.87084996,194.34,194.27,22.87084996]
[1734657254799,22.87084996,194.34,194.26,22.87084996]
[1734657255128,22.87084996,194.31,194.24,22.87084996]
[1734657255328,22.87084996,194.31,194.21,14.453]
[1734657255329,22.87084996,194.31,194.23,22.87084996]
[1734657255485,22.87084996,194.29,194.22,22.87084996]
[1734657256753,22.87084996,194.31,194.24,22.87084996]
[1734657257342,29.12364996,194.33,194.25,22.87084996]
[1734657257637,22.87084996,194.31,194.24,22.87084996]
[1734657257841,22.87084996,194.31,194.23,22.87084996]
[1734657258147,22.87084996,194.28,194.21,22.87084996]
[1734657258317,22.87084996,194.3,194.22,22.87084996]
[1734657258516,29.12364996,194.33,194.25,22.87084996]
[1734657258851,29.12364996,194.33,194.26,22.87084996]
[1734657259047,6.2528,194.33,194.27,22.87084996]
[1734657259340,29.12364996,194.33,194.26,22.87084996]
[1734657259704,6.2528,194.33,194.27,22.87084996]
[1734657259942,6.2528,194.33,194.28,22.87084996]
[1734657260235,22.87084996,194.37,194.3,22.87084996]
[1734657260438,22.87084996,194.36,194.29,22.87084996]
[1734657260609,22.87084996,194.35,194.28,22.87084996]
[1734657261141,22.87084996,194.36,194.29,22.87084996]
[1734657261444,22.87084996,194.35,194.28,22.87084996]
[1734657261749,22.87084996,194.34,194.27,22.87084996]
[1734657262045,22.87084996,194.29,194.22,22.87084996]
[1734657262335,22.87084996,194.27,194.2,22.87084996]
[1734657262562,29.04894996,194.27,194.2,22.87084996]
[1734657262908,22.87084996,194.25,194.18,22.87084996]
[1734657263827,22.87084996,194.26,194.19,22.87084996]
[1734657264547,29.04894996,194.27,194.2,22.87084996]
[1734657265270,6.1781,194.27,194.22,22.87084996]
[1734657265428,6.1781,194.27,194.23,22.87084996]
[1734657266137,1.5826,194.29,194.23,22.87084996]
[1734657267261,22.87084996,194.31,194.24,22.87084996]
[1734657267427,6.3829,194.32,194.26,22.87084996]
[1734657267636,134.7,194.12,193.94,15.82823764]
[1734657267963,22.87084996,194.1,193.94,15.82823764]
[1734657268263,1.6403,194.12,193.94,15.82823764]
[1734657268264,22.87084996,193.99,193.98,30.0]
[1734657268432,22.87084996,194.04,193.98,30.0]
[1734657268627,7.94091742,194.02,193.88,0.6463471]
[1734657268834,22.87084996,193.98,193.89,22.87084996]
[1734657269035,37.36341337,193.99,193.91,37.36341337]
[1734657269273,20.0,194.05,193.89,0.77337565]
[1734657269631,37.36341337,194.02,193.93,37.36341337]
[1734657269965,15.6630987,194.09,193.93,37.36341337]
[1734657269966,37.36341337,194.1,194.01,37.36341337]
[1734657270152,37.36341337,194.12,194.03,37.36341337]
[1734657270751,37.36341337,194.14,194.05,37.36341337]
[1734657271249,37.36341337,194.12,194.03,37.36341337]
[1734657271465,37.36341337,194.1,194.03,37.36341337]
[1734657271775,37.36341337,194.12,194.03,37.36341337]
[1734657272152,37.36341337,194.14,194.07,37.36341337]
[1734657272550,37.36341337,194.14,194.05,37.36341337]
[1734657273993,37.36341337,194.16,194.09,37.36341337]
[1734657274287,37.36341337,194.18,194.11,37.36341337]
[1734657274449,37.36341337,194.2,194.13,37.36341337]
[1734657274648,37.36341337,194.24,194.16,37.36341337]
[1734657274850,37.36341337,194.23,194.15,37.36341337]
[1734657275389,6.3078,194.27,194.15,37.36341337]
[1734657275390,37.36341337,194.22,194.15,37.36341337]
[1734657275551,37.36341337,194.21,194.13,37.36341337]
[1734657279573,37.36341337,194.22,194.15,37.36341337]
[1734657279982,37.36341337,194.21,194.13,37.36341337]
[1734657280492,37.36341337,194.23,194.16,37.36341337]
[1734657280658,37.36341337,194.25,194.18,37.36341337]
[1734657280859,6.3078,194.27,194.2,37.36341337]
[1734657280860,37.36341337,194.27,194.2,37.36341337]
[1734657281469,37.36341337,194.28,194.21,37.36341337]
[1734657281666,37.36341337,194.29,194.21,37.36341337]
[1734657281978,37.36341337,194.3,194.23,37.36341337]
[1734657282191,37.36341337,194.29,194.22,37.36341337]
[1734657282794,37.36341337,194.31,194.24,37.36341337]
[1734657282960,37.36341337,194.31,194.17,12.8753]
[1734657282961,37.36341337,194.34,194.28,37.36341337]
[1734657283295,37.36341337,194.35,194.28,37.36341337]
[1734657283590,37.36341337,194.35,194.21,0.771998]
[1734657283591,37.36341337,194.34,194.27,37.36341337]
[1734657284106,37.36341337,194.32,194.25,37.36341337]
[1734657284259,37.36341337,194.32,194.2,20.0]
[1734657284260,37.36341337,194.31,194.24,37.36341337]
[1734657284462,37.36341337,194.3,194.23,37.36341337]
[1734657284771,37.36341337,194.3,194.24,37.36341337]
[1734657285077,37.36341337,194.28,194.21,37.36341337]
[1734657285296,37.36341337,194.25,194.18,37.36341337]
[1734657285497,37.36341337,194.27,194.2,37.36341337]
[1734657285793,37.36341337,194.26,194.19,37.36341337]
[1734657285981,37.36341337,194.28,194.21,37.36341337]
[1734657286489,37.36341337,194.29,194.22,37.36341337]
[1734657286880,37.36341337,194.29,194.21,37.36341337]
[1734657287059,37.36341337,194.28,194.21,37.36341337]
[1734657287265,37.36341337,194.27,194.19,37.36341337]
[1734657287564,37.36341337,194.27,194.2,37.36341337]
[1734657288166,37.36341337,194.28,194.2,37.36341337]
[1734657288581,37.36341337,194.26,194.19,37.36341337]
[1734657288916,37.36341337,194.25,194.18,37.36341337]
[1734657289069,22.93543954,194.23,194.15,22.93543954]
[1734657289270,22.93543954,194.22,194.14,22.93543954]
[1734657289492,22.93543954,194.23,194.15,22.93543954]
[1734657289684,22.93543954,194.26,194.19,22.93543954]
[1734657289882,22.93543954,194.29,194.21,22.93543954]
[1734657290117,22.93543954,194.29,194.22,22.93543954]
[1734657290398,22.93543954,194.28,194.21,22.93543954]
[1734657291707,22.93543954,194.27,194.2,22.93543954]
[1734657292089,22.93543954,194.28,194.2,22.93543954]
[1734657292612,22.93543954,194.28,194.21,22.93543954]
[1734657292803,22.93543954,194.29,194.22,22.93543954]
[1734657293009,22.93543954,194.3,194.22,22.93543954]
[1734657293306,22.93543954,194.28,194.21,22.93543954]
[1734657293486,22.93543954,194.28,194.2,22.93543954]
[1734657293913,22.93543954,194.28,194.21,22.93543954]
[1734657294118,22.93543954,194.27,194.19,22.93543954]
[1734657294446,22.93543954,194.29,194.22,22.93543954]
[1734657294943,22.93543954,194.28,194.2,22.93543954]
[1734657295339,22.93543954,194.27,194.2,22.93543954]
[1734657295496,22.93543954,194.25,194.17,22.93543954]
[1734657295699,22.93543954,194.23,194.16,22.93543954]
[1734657296109,23.776884,194.31,194.14,22.93543954]
[1734657296110,22.93543954,194.21,194.14,22.93543954]
[1734657296314,22.93543954,194.21,194.12,22.93543954]
[1734657296802,22.93543954,194.19,194.12,22.93543954]
[1734657297112,22.93543954,194.16,194.08,22.93543954]
[1734657297425,22.93543954,194.14,194.06,22.93543954]
[1734657297681,22.93543954,194.13,194.06,22.93543954]
[1734657298011,42.93543954,194.16,194.09,22.93543954]
[1734657298347,20.0,194.16,194.1,22.93543954]
[1734657298505,22.93543954,194.18,194.11,22.93543954]
[1734657299146,22.93543954,194.19,194.11,22.93543954]
[1734657299319,22.93543954,194.18,194.11,22.93543954]
[1734657299518,22.93543954,194.19,194.12,22.93543954]
[1734657299919,22.93543954,194.2,194.13,22.93543954]
[1734657300127,29.37473954,194.21,194.14,22.93543954]
[1734657300430,22.93543954,194.19,194.12,22.93543954]
[1734657300631,22.93543954,194.18,194.1,22.93543954]
[1734657300833,22.93543954,194.18,194.11,22.93543954]
[1734657302954,22.93543954,194.2,194.12,22.93543954]
[1734657303130,22.93543954,194.18,194.11,22.93543954]
[1734657303336,22.93543954,194.12,194.05,22.93543954]
[1734657303542,22.93543954,194.09,193.96,1.599]
[1734657303743,20.0,194.16,193.98,18.9527]
[1734657303952,23.776884,194.15,193.98,18.9527]
[1734657304257,20.0,194.17,193.99,0.77303661]
[1734657304422,20.0,194.14,193.98,18.9527]
[1734657304625,22.93543954,194.06,193.98,22.93543954]
[1734657304825,23.776884,194.09,193.94,22.93543954]
[1734657304826,22.93543954,194.02,193.94,22.93543954]
[1734657305422,22.93543954,194.01,193.94,22.93543954]
[1734657305730,22.93543954,194.02,193.94,22.93543954]
[1734657305943,22.93543954,194.03,193.96,22.93543954]
[1734657306349,22.93543954,194.04,193.96,22.93543954]
[1734657306551,22.93543954,194.05,193.97,22.93543954]
[1734657306824,22.93543954,194.08,194.0,22.93543954]
[1734657307035,22.93543954,194.05,193.97,22.93543954]
[1734657307529,22.93543954,194.06,193.99,22.93543954]
[1734657307720,22.93543954,194.08,194.01,22.93543954]
[1734657307929,22.93543954,194.11,194.03,22.93543954]
[1734657308431,22.93543954,194.12,194.04,22.93543954]
[1734657308630,6.4913,194.15,194.08,22.93543954]
[1734657308827,22.93543954,194.16,194.09,22.93543954]
[1734657309034,21.7102987,194.2,194.07,12.8817]
[1734657309035,22.93543954,194.17,194.07,12.8817]
[1734657309232,22.93543954,194.19,194.12,22.93543954]
[1734657309432,22.93543954,194.18,194.11,22.93543954]
[1734657309628,22.93543954,194.15,194.08,22.93543954]
[1734657309940,22.93543954,194.15,194.07,22.93543954]
[1734657310265,22.93543954,194.15,194.03,12.8839]
[1734657310266,22.93543954,194.11,194.04,22.93543954]
[1734657310467,22.93543954,194.09,193.99,12.8866]
[1734657310632,20.0,194.16,193.99,12.8866]
[1734657310839,22.93543954,194.08,194.01,22.93543954]
[1734657311270,22.93543954,194.04,193.97,22.93543954]
[1734657311482,22.93543954,194.04,193.96,24.57443954]
[1734657311772,22.93543954,194.04,193.96,22.93543954]
[1734657312267,22.93543954,194.05,193.97,22.93543954]
[1734657312631,22.93543954,194.09,194.02,22.93543954]
[1734657312870,22.93543954,194.11,194.04,22.93543954]
[1734657313174,22.93543954,194.08,194.0,22.93543954]
[1734657313856,22.93543954,194.06,193.98,22.93543954]
[1734657314573,22.93543954,194.06,193.99,22.93543954]
[1734657316149,22.93543954,194.05,193.97,22.93543954]
[1734657316331,22.93543954,194.04,193.96,22.93543954]
[1734657316536,22.93543954,194.0,193.93,22.93543954]
[1734657316735,22.93543954,193.98,193.91,22.93543954]
[1734657316977,22.93543954,193.98,193.88,7.2899471]
[1734657316978,22.93543954,193.96,193.89,22.93543954]
[1734657317142,22.93543954,193.94,193.88,0.6463471]
[1734657317339,22.93543954,193.93,193.88,0.6463471]
[1734657318476,22.93543954,193.92,193.88,0.6463471]
[1734657318680,22.93543954,193.9,193.88,0.6463471]
[1734657318976,22.93543954,193.91,193.88,0.6463471]
[1734657319270,22.93543954,193.92,193.84,22.93543954]
[1734657319478,22.93543954,193.92,193.85,22.93543954]
[1734657319972,22.93543954,193.92,193.84,22.93543954]
[1734657320206,22.93543954,193.91,193.84,22.93543954]
[1734657320376,22.93543954,193.89,193.82,22.93543954]
[1734657320669,22.93543954,193.86,193.79,22.93543954]
[1734657320853,22.93543954,193.83,193.76,22.93543954]
[1734657321039,22.93543954,193.82,193.75,22.93543954]
[1734657321239,22.93543954,193.83,193.75,22.93543954]
[1734657321671,22.93543954,193.83,193.72,1.638]
[1734657321672,6.1771,193.94,193.76,0.77407631]
[1734657321962,29.11253954,193.94,193.87,22.93543954]
[1734657322374,29.11253954,193.94,193.76,0.77407631]
[1734657322375,6.1771,193.94,193.89,22.93543954]
[1734657322540,22.93543954,193.96,193.89,22.93543954]
[1734657322742,22.93543954,193.98,193.91,22.93543954]
[1734657323051,7.83154935,193.99,193.94,22.93543954]
[1734657323380,22.93543954,194.0,193.93,22.93543954]
[1734657323543,22.93543954,193.97,193.9,22.93543954]
[1734657323873,22.93543954,193.97,193.89,22.93543954]
[1734657324278,22.93543954,193.93,193.86,22.93543954]
[1734657324770,22.93543954,193.92,193.84,22.93543954]
[1734657324948,37.38586139,193.94,193.86,37.38586139]
[1734657325349,37.38586139,193.91,193.84,37.38586139]
[1734657325571,37.38586139,193.93,193.85,37.38586139]
[1734657325774,37.38586139,193.94,193.86,37.38586139]
[1734657326366,37.38586139,193.93,193.86,37.38586139]
[1734657326677,37.38586139,193.91,193.83,37.38586139]
[1734657327580,37.38586139,193.93,193.85,37.38586139]
[1734657328077,37.38586139,193.95,193.87,37.38586139]
[1734657328275,37.38586139,193.98,193.9,37.38586139]
[1734657328488,37.38586139,193.98,193.92,37.38586139]
[1734657328855,37.38586139,194.0,193.92,37.38586139]
[1734657329070,37.38586139,194.02,193.95,37.38586139]
[1734657329556,37.38586139,194.03,193.96,37.38586139]
[1734657329881,37.38586139,194.03,193.88,7.24279626]
[1734657329882,37.38586139,194.07,194.0,37.38586139]
[1734657330382,37.38586139,194.06,193.99,37.38586139]
[1734657330878,37.38586139,194.07,193.99,37.38586139]
[1734657331084,37.38586139,194.04,193.97,37.38586139]
[1734657331256,37.38586139,194.04,193.96,37.38586139]
[1734657331456,37.38586139,194.07,193.99,37.38586139]
[1734657331656,37.38586139,194.06,193.99,37.38586139]
[1734657331885,37.38586139,194.05,193.98,37.38586139]
[1734657332488,37.38586139,194.0,193.93,37.38586139]
[1734657332654,37.38586139,194.05,193.96,37.38586139]
[1734657332858,37.38586139,194.07,193.99,37.38586139]
[1734657333056,1.3151281,194.12,194.03,37.38586139]
[1734657333256,26.4113,194.29,194.11,37.38586139]
[1734657333257,7.83154935,194.18,194.11,37.38586139]
[1734657333460,7.83154935,194.18,194.04,0.77305229]
[1734657333663,7.83154935,194.18,194.11,37.38586139]
[1734657334063,37.38586139,194.19,194.11,37.38586139]
[1734657335490,37.38586139,194.21,194.13,37.38586139]
[1734657335789,37.38586139,194.23,194.15,37.38586139]
[1734657336388,37.38586139,194.2,194.12,37.38586139]
[1734657337096,23.776884,194.15,194.08,37.38586139]
[1734657337589,61.16274539,194.15,194.07,37.38586139]
[1734657338574,23.776884,194.11,194.05,37.38586139]
[1734657338774,23.776884,194.11,194.04,37.38586139]
[1734657338967,61.16274539,194.11,194.03,37.38586139]
[1734657339166,20.0,194.08,194.03,37.38586139]
[1734657340590,23.776884,194.07,194.01,37.38586139]
[1734657340800,23.776884,194.03,193.99,37.38586139]
[1734657341290,23.776884,194.03,193.98,37.38586139]
[1734657341678,23.776884,194.03,193.96,37.38586139]
[1734657342591,23.776884,194.03,193.97,37.38586139]
[1734657342778,20.0,193.98,193.92,37.38586139]
[1734657342977,23.776884,194.03,193.97,37.38586139]
[1734657343688,61.16274539,194.03,193.96,37.38586139]
[1734657344096,37.38586139,194.01,193.94,37.38586139]
[1734657344307,23.776884,193.96,193.9,37.38586139]
[1734657344470,20.0,193.93,193.89,37.38586139]
[1734657345278,20.0,193.93,193.91,37.38586139]
[1734657345482,23.776884,193.96,193.91,37.38586139]
[1734657345686,61.16274539,193.97,193.9,37.38586139]
[1734657345898,23.776884,193.97,193.91,37.38586139]
[1734657346195,37.38586139,193.98,193.91,37.38586139]
[1734657346196,61.16274539,193.98,193.91,37.38586139]
[1734657346394,37.38586139,193.97,193.89,37.38586139]
[1734657346596,37.38586139,193.95,193.87,37.38586139]
[1734657346896,37.38586139,193.93,193.86,37.38586139]
[1734657347079,37.38586139,193.93,193.85,37.38586139]
[1734657347276,37.38586139,193.92,193.85,37.38586139]
[1734657347478,37.38586139,193.91,193.83,37.38586139]
[1734657347789,37.38586139,193.9,193.82,37.38586139]
[1734657347988,37.38586139,193.92,193.84,37.38586139]
[1734657348297,20.0,193.94,193.87,37.38586139]
[1734657348485,20.0,193.95,193.88,37.38586139]
[1734657348668,37.38586139,193.96,193.88,37.38586139]
[1734657348998,37.38586139,193.96,193.82,37.38586139]
[1734657348999,37.38586139,193.97,193.9,37.38586139]
[1734657349173,37.38586139,193.94,193.87,37.38586139]
[1734657349371,37.38586139,193.89,193.81,37.38586139]
[1734657349788,37.38586139,193.91,193.84,37.38586139]
[1734657349985,35.375984,193.98,193.86,37.38586139]
[1734657350212,37.38586139,193.91,193.78,12.9008]